fUST/lending_fUST_20240705
["ID","MTS","AMOUNT","RATE_DAILY","PERIOD"]
[331207898,1720133458042,-1516.8,0.0001589,2]
[331207899,1720133458051,-1206.53,0.0001589,2]
[331207900,1720133458060,-2616.0,0.0001589,2]
[331207901,1720133458070,-500.0,0.0001589,2]
[331207902,1720133458079,-490.94852279,0.00015995,2]
[331207903,1720133458089,-174.096832,0.00016036,2]
[331207904,1720133458098,-186.61507,0.00016036,2]
[331207905,1720133458108,-186.615069,0.00016036,2]
[331207906,1720133458117,-174.096833,0.00016036,2]
[331207907,1720133458127,-2820.54,0.00016162,2]
[331207908,1720133458137,-2820.54,0.00016162,2]
[331207909,1720133458149,-2820.54,0.00016162,2]
[331207910,1720133458159,-2820.54,0.00016162,2]
[331207911,1720133458169,-2820.61591836,0.00016162,2]
[331207912,1720133458178,-500.0,0.00016162,2]
[331207913,1720133458187,-517.48,0.00016162,2]
[331207914,1720133458196,-4311.7,0.00016162,2]
[331207915,1720133458206,-500.0,0.00016163,2]
[331207916,1720133458215,-241.23847525,0.00016163,2]
[331207917,1720133458225,-500.0,0.00016163,2]
[331207918,1720133458235,-413.32146119,0.00016163,2]
[331207919,1720133458245,-500.0,0.00016163,2]
[331207920,1720133458254,-500.0,0.00016163,2]
[331207921,1720133458264,-562.04,0.00016163,2]
[331207922,1720133458278,-576.88,0.00016163,2]
[331207923,1720133458287,-500.0,0.00016163,2]
[331207924,1720133458299,-500.0,0.00016163,2]
[331207925,1720133458309,-500.0,0.00016163,2]
[331207926,1720133458319,-153.16,0.00016163,2]
[331207927,1720133458328,-500.0,0.00016163,2]
[331207928,1720133458338,-500.0,0.00016163,2]
[331207929,1720133458351,-500.0,0.00016163,2]
[331207930,1720133458360,-500.0,0.00016163,2]
[331207931,1720133458369,-500.0,0.00016163,2]
[331207932,1720133458378,-500.0,0.00016163,2]
[331207933,1720133458387,-500.0,0.00016163,2]
[331207934,1720133458396,-500.0,0.00016163,2]
[331207935,1720133458406,-500.0,0.00016163,2]
[331207936,1720133458415,-500.0,0.00016163,2]
[331207937,1720133458423,-500.0,0.00016163,2]
[331207938,1720133458433,-994.64,0.00016164,2]
[331207939,1720133458442,-606.05,0.00016164,2]
[331207940,1720133458451,-500.0,0.00016164,2]
[331207941,1720133458460,-500.0,0.00016164,2]
[331207942,1720133458469,-500.0,0.00016164,2]
[331207943,1720133458478,-500.0,0.00016164,2]
[331207944,1720133458487,-500.0,0.00016164,2]
[331207945,1720133458496,-500.0,0.00016164,2]
[331207946,1720133458505,-500.0,0.00016164,2]
[331207947,1720133458514,-3667.41,0.00016164,2]
[331207948,1720133458523,-500.0,0.00016164,2]
[331207949,1720133458532,-500.0,0.00016164,2]
[331207950,1720133458541,-500.0,0.00016164,2]
[331207951,1720133458550,-506.54,0.00016164,2]
[331207952,1720133458561,-300.94,0.00016164,2]
[331207953,1720133458571,-500.0,0.00016164,2]
[331207954,1720133458582,-500.0,0.00016164,2]
[331207955,1720133458592,-500.0,0.00016164,2]
[331207956,1720133458602,-523.53,0.00016164,2]
[331207957,1720133458611,-671.84,0.00016164,2]
[331207958,1720133458620,-500.0,0.00016164,2]
[331207959,1720133458631,-1225.89,0.00016164,2]
[331207960,1720133458640,-500.0,0.00016164,2]
[331207961,1720133458650,-234.74,0.00016164,2]
[331207962,1720133458660,-500.0,0.00016164,2]
[331207963,1720133458669,-688.84,0.00016164,2]
[331207964,1720133458679,-849.87,0.00016164,2]
[331207965,1720133458687,-219.85,0.00016164,2]
[331207966,1720133458697,-500.0,0.00016164,2]
[331207967,1720133458706,-500.0,0.00016164,2]
[331207968,1720133458716,-500.0,0.00016164,2]
[331207969,1720133458725,-316.93,0.00016164,2]
[331207970,1720133458734,-500.0,0.00016164,2]
[331207971,1720133458745,-500.0,0.00016164,2]
[331207972,1720133458754,-758.77,0.00016164,2]
[331207973,1720133458764,-500.0,0.00016164,2]
[331207974,1720133458773,-600.34,0.00016164,2]
[331207975,1720133458784,-500.0,0.00016164,2]
[331207976,1720133458794,-500.0,0.00016164,2]
[331207977,1720133458804,-1516.8,0.00016164,2]
[331207978,1720133458814,-1206.53,0.00016164,2]
[331207979,1720133458824,-2616.0,0.00016164,2]
[331207980,1720133458834,-100000.0,0.00016254,2]
[331207981,1720133458844,-57212.27342122,0.00016254,2]
[331207982,1720133458856,-154.83742071,0.00016255,2]
[331207983,1720133458865,-30000.0,0.00016255,2]
[331207984,1720133458876,-42225.49623484,0.00016255,2]
[331207985,1720133458888,-17247.35351992,0.00016255,2]
[331207986,1720133458897,-10179.46989365,0.00016255,2]
[331207987,1720133458907,-500.0,0.00016436,2]
[331207988,1720133458918,-517.48,0.00016436,2]
[331207989,1720133458927,-4311.7,0.00016436,2]
[331207990,1720133458938,-500.0,0.00016437,2]
[331207991,1720133458948,-273.15,0.00016437,2]
[331207992,1720133458958,-500.0,0.00016437,2]
[331207993,1720133458968,-576.88,0.00016437,2]
[331207994,1720133458979,-500.0,0.00016437,2]
[331207995,1720133458989,-500.0,0.00016437,2]
[331207996,1720133458999,-500.0,0.00016437,2]
[331207997,1720133459009,-437.71036704,0.00016437,2]
[331207998,1720133459020,-500.0,0.00016437,2]
[331207999,1720133459032,-500.0,0.00016437,2]
[331208000,1720133459043,-500.0,0.00016437,2]
[331208001,1720133459052,-500.0,0.00016437,2]
[331208002,1720133459062,-543.1,0.00016437,2]
[331208003,1720133459073,-500.0,0.00016437,2]
[331208004,1720133459083,-228.61,0.00016437,2]
[331208005,1720133459092,-500.0,0.00016437,2]
[331208006,1720133459101,-500.0,0.00016437,2]
[331208007,1720133459110,-994.64,0.00016438,2]
[331208008,1720133459119,-606.05,0.00016438,2]
[331208009,1720133459129,-500.0,0.00016438,2]
[331208010,1720133459138,-500.0,0.00016438,2]
[331208011,1720133459148,-500.0,0.00016438,2]
[331208012,1720133459157,-500.0,0.00016438,2]
[331208013,1720133459167,-500.0,0.00016438,2]
[331208014,1720133459176,-500.0,0.00016438,2]
[331208015,1720133459187,-500.0,0.00016438,2]
[331208016,1720133459196,-3667.41,0.00016438,2]
[331208017,1720133459206,-500.0,0.00016438,2]
[331208018,1720133459215,-500.0,0.00016438,2]
[331208019,1720133459224,-500.0,0.00016438,2]
[331208020,1720133459234,-500.0,0.00016438,2]
[331208021,1720133459245,-500.0,0.00016438,2]
[331208022,1720133459254,-500.0,0.00016438,2]
[331208023,1720133459263,-523.53,0.00016438,2]
[331208024,1720133459277,-671.84,0.00016438,2]
[331208025,1720133459374,-500.0,0.00016438,2]
[331208026,1720133459383,-1225.89,0.00016438,2]
[331208027,1720133459394,-500.0,0.00016438,2]
[331208028,1720133459403,-500.0,0.00016438,2]
[331208029,1720133459413,-688.84,0.00016438,2]
[331208030,1720133459423,-849.87,0.00016438,2]
[331208031,1720133459432,-500.0,0.00016438,2]
[331208032,1720133459443,-500.0,0.00016438,2]
[331208033,1720133459453,-214.34415311,0.00016438,2]
[331208034,1720133459463,-500.0,0.00016438,2]
[331208035,1720133459472,-194.88,0.00016438,2]
[331208036,1720133459482,-758.77,0.00016438,2]
[331208037,1720133459491,-500.0,0.00016438,2]
[331208038,1720133459502,-600.34,0.00016438,2]
[331208039,1720133459513,-500.0,0.00016438,2]
[331208040,1720133459523,-647.77,0.00016438,2]
[331208041,1720133459533,-1516.8,0.00016438,2]
[331208042,1720133459543,-1206.53,0.00016438,2]
[331208043,1720133459552,-2616.0,0.00016438,2]
[331208044,1720133459561,-166.666666,0.00016438,2]
[331208045,1720133459571,-500.0,0.0001671,2]
[331208046,1720133459580,-517.48,0.0001671,2]
[331208047,1720133459589,-4311.7,0.0001671,2]
[331208048,1720133459598,-500.0,0.00016711,2]
[331208049,1720133459607,-500.0,0.00016711,2]
[331208050,1720133459616,-576.88,0.00016711,2]
[331208051,1720133459626,-198.01349131,0.00016711,2]
[331208052,1720133459635,-500.0,0.00016711,2]
[331208053,1720133459644,-500.0,0.00016711,2]
[331208054,1720133459653,-500.0,0.00016711,2]
[331208055,1720133459662,-500.0,0.00016711,2]
[331208056,1720133459672,-500.0,0.00016711,2]
[331208057,1720133459681,-500.0,0.00016711,2]
[331208058,1720133459690,-500.0,0.00016711,2]
[331208059,1720133459699,-994.64,0.00016712,2]
[331208060,1720133459708,-606.05,0.00016712,2]
[331208061,1720133459718,-500.0,0.00016712,2]
[331208062,1720133459727,-494.96,0.00016712,2]
[331208063,1720133459736,-500.0,0.00016712,2]
[331208064,1720133459746,-500.0,0.00016712,2]
[331208065,1720133459755,-500.0,0.00016712,2]
[331208066,1720133459764,-500.0,0.00016712,2]
[331208067,1720133459773,-3667.41,0.00016712,2]
[331208068,1720133459782,-500.0,0.00016712,2]
[331208069,1720133459793,-500.0,0.00016712,2]
[331208070,1720133459804,-500.0,0.00016712,2]
[331208071,1720133459814,-500.0,0.00016712,2]
[331208072,1720133459824,-500.0,0.00016712,2]
[331208073,1720133459833,-558.69,0.00016712,2]
[331208074,1720133459842,-523.53,0.00016712,2]
[331208075,1720133459851,-671.84,0.00016712,2]
[331208076,1720133459861,-500.0,0.00016712,2]
[331208077,1720133459870,-1225.89,0.00016712,2]
[331208078,1720133459880,-173.36,0.00016712,2]
[331208079,1720133459889,-500.0,0.00016712,2]
[331208080,1720133459899,-688.84,0.00016712,2]
[331208081,1720133459909,-849.87,0.00016712,2]
[331208082,1720133459919,-391.05,0.00016712,2]
[331208083,1720133459928,-500.0,0.00016712,2]
[331208084,1720133459937,-500.0,0.00016712,2]
[331208085,1720133459948,-758.77,0.00016712,2]
[331208086,1720133459957,-500.0,0.00016712,2]
[331208087,1720133459966,-600.34,0.00016712,2]
[331208088,1720133459975,-500.0,0.00016712,2]
[331208089,1720133459985,-1516.8,0.00016712,2]
[331208090,1720133459994,-1206.53,0.00016712,2]
[331208091,1720133460007,-2616.0,0.00016712,2]
[331208092,1720133460016,-166.666666,0.00016823,2]
[331208093,1720133460029,-500.0,0.00016984,2]
[331208094,1720133460038,-517.48,0.00016984,2]
[331208095,1720133460048,-4311.7,0.00016984,2]
[331208096,1720133460057,-500.0,0.00016985,2]
[331208097,1720133460067,-576.88,0.00016985,2]
[331208098,1720133460076,-500.0,0.00016985,2]
[331208099,1720133460086,-500.0,0.00016985,2]
[331208100,1720133460096,-500.0,0.00016985,2]
[331208101,1720133460107,-395.02,0.00016985,2]
[331208102,1720133460118,-500.0,0.00016985,2]
[331208103,1720133460126,-500.0,0.00016985,2]
[331208104,1720133460136,-500.0,0.00016985,2]
[331208105,1720133460146,-994.64,0.00016986,2]
[331208106,1720133460155,-606.05,0.00016986,2]
[331208107,1720133460164,-381.63,0.00016986,2]
[331208108,1720133460173,-500.0,0.00016986,2]
[331208109,1720133460182,-500.0,0.00016986,2]
[331208110,1720133460191,-500.0,0.00016986,2]
[331208111,1720133460201,-3667.41,0.00016986,2]
[331208112,1720133460210,-536.43,0.00016986,2]
[331208113,1720133460219,-500.0,0.00016986,2]
[331208114,1720133460230,-500.0,0.00016986,2]
[331208115,1720133460239,-500.0,0.00016986,2]
[331208116,1720133460253,-523.53,0.00016986,2]
[331208117,1720133460262,-588.15,0.00016986,2]
[331208118,1720133460274,-671.84,0.00016986,2]
[331208119,1720133460284,-1225.89,0.00016986,2]
[331208120,1720133460294,-500.0,0.00016986,2]
[331208121,1720133460304,-688.84,0.00016986,2]
[331208122,1720133460315,-849.87,0.00016986,2]
[331208123,1720133460324,-500.0,0.00016986,2]
[331208124,1720133460334,-500.0,0.00016986,2]
[331208125,1720133460344,-758.77,0.00016986,2]
[331208126,1720133460356,-500.0,0.00016986,2]
[331208127,1720133460366,-600.34,0.00016986,2]
[331208128,1720133460376,-500.0,0.00016986,2]
[331208129,1720133460385,-1516.8,0.00016986,2]
[331208130,1720133460395,-1206.53,0.00016986,2]
[331208131,1720133460403,-2616.0,0.00016986,2]
[331208132,1720133460415,-166.666666,0.00017208,2]
[331208133,1720133460426,-500.0,0.00017258,2]
[331208134,1720133460437,-517.48,0.00017258,2]
[331208135,1720133460449,-4311.7,0.00017258,2]
[331208136,1720133460459,-500.0,0.00017259,2]
[331208137,1720133460469,-576.88,0.00017259,2]
[331208138,1720133460478,-500.0,0.00017259,2]
[331208139,1720133460487,-500.0,0.00017259,2]
[331208140,1720133460499,-500.0,0.00017259,2]
[331208141,1720133460509,-500.0,0.00017259,2]
[331208142,1720133460518,-335.35603896,0.00017259,2]
[331208143,1720133460527,-994.64,0.0001726,2]
[331208144,1720133460536,-606.05,0.0001726,2]
[331208145,1720133460550,-500.0,0.0001726,2]
[331208146,1720133460560,-500.0,0.0001726,2]
[331208147,1720133460569,-500.0,0.0001726,2]
[331208148,1720133460579,-3667.41,0.0001726,2]
[331208149,1720133460588,-500.0,0.0001726,2]
[331208150,1720133460598,-500.0,0.0001726,2]
[331208151,1720133460607,-500.0,0.0001726,2]
[331208152,1720133460617,-523.53,0.0001726,2]
[331208153,1720133460626,-671.84,0.0001726,2]
[331208154,1720133460635,-1225.89,0.0001726,2]
[331208155,1720133460645,-283.6,0.0001726,2]
[331208156,1720133460656,-688.84,0.0001726,2]
[331208157,1720133460666,-849.87,0.0001726,2]
[331208158,1720133460675,-500.0,0.0001726,2]
[331208159,1720133460686,-500.0,0.0001726,2]
[331208160,1720133460697,-758.77,0.0001726,2]
[331208161,1720133460706,-500.0,0.0001726,2]
[331208162,1720133460715,-600.34,0.0001726,2]
[331208163,1720133460724,-500.0,0.0001726,2]
[331208164,1720133460734,-1516.8,0.0001726,2]
[331208165,1720133460743,-1206.53,0.0001726,2]
[331208166,1720133460755,-2616.0,0.0001726,2]
[331208167,1720133460764,-500.0,0.00017532,2]
[331208168,1720133460773,-517.48,0.00017532,2]
[331208169,1720133460782,-4311.7,0.00017532,2]
[331208170,1720133460791,-500.0,0.00017533,2]
[331208171,1720133460800,-576.88,0.00017533,2]
[331208172,1720133460809,-500.0,0.00017533,2]
[331208173,1720133460818,-610.16,0.00017533,2]
[331208174,1720133460828,-500.0,0.00017533,2]
[331208175,1720133460838,-500.0,0.00017533,2]
[331208176,1720133460848,-994.64,0.00017534,2]
[331208177,1720133460857,-632.4,0.00017534,2]
[331208178,1720133460867,-606.05,0.00017534,2]
[331208179,1720133460876,-500.0,0.00017534,2]
[331208180,1720133460885,-500.0,0.00017534,2]
[331208181,1720133460894,-500.0,0.00017534,2]
[331208182,1720133460903,-3667.41,0.00017534,2]
[331208183,1720133460912,-500.0,0.00017534,2]
[331208184,1720133460922,-289.42,0.00017534,2]
[331208185,1720133460931,-500.0,0.00017534,2]
[331208186,1720133460940,-523.53,0.00017534,2]
[331208187,1720133460949,-671.84,0.00017534,2]
[331208188,1720133460958,-1225.89,0.00017534,2]
[331208189,1720133460967,-688.84,0.00017534,2]
[331208190,1720133460976,-849.87,0.00017534,2]
[331208191,1720133460986,-500.0,0.00017534,2]
[331208192,1720133460995,-500.0,0.00017534,2]
[331208193,1720133461009,-758.77,0.00017534,2]
[331208194,1720133461020,-500.0,0.00017534,2]
[331208195,1720133461033,-600.34,0.00017534,2]
[331208196,1720133461042,-500.0,0.00017534,2]
[331208197,1720133461051,-1516.8,0.00017534,2]
[331208198,1720133461061,-1206.53,0.00017534,2]
[331208199,1720133461070,-2616.0,0.00017534,2]
[331208200,1720133461079,-166.666666,0.00017592,2]
[331208201,1720133461089,-500.0,0.00017806,2]
[331208202,1720133461098,-517.48,0.00017806,2]
[331208203,1720133461107,-4311.7,0.00017806,2]
[331208204,1720133461117,-500.0,0.00017807,2]
[331208205,1720133461126,-576.88,0.00017807,2]
[331208206,1720133461135,-500.0,0.00017807,2]
[331208207,1720133461144,-310.09683546,0.00017807,2]
[331208208,1720133461154,-500.0,0.00017807,2]
[331208209,1720133461163,-994.64,0.00017808,2]
[331208210,1720133461172,-632.4,0.00017808,2]
[331208211,1720133461181,-606.05,0.00017808,2]
[331208212,1720133461190,-313.61,0.00017808,2]
[331208213,1720133461199,-500.0,0.00017808,2]
[331208214,1720133461208,-3667.41,0.00017808,2]
[331208215,1720133461217,-500.0,0.00017808,2]
[331208216,1720133461226,-500.0,0.00017808,2]
[331208217,1720133461235,-523.53,0.00017808,2]
[331208218,1720133461244,-671.84,0.00017808,2]
[331208219,1720133461254,-1225.89,0.00017808,2]
[331208220,1720133461264,-688.84,0.00017808,2]
[331208221,1720133461277,-849.87,0.00017808,2]
[331208222,1720133461286,-500.0,0.00017808,2]
[331208223,1720133461296,-244.89,0.00017808,2]
[331208224,1720133461306,-758.77,0.00017808,2]
[331208225,1720133461315,-500.0,0.00017808,2]
[331208226,1720133461325,-600.34,0.00017808,2]
[331208227,1720133461334,-500.0,0.00017808,2]
[331208228,1720133461343,-1516.8,0.00017808,2]
[331208229,1720133461355,-1206.53,0.00017808,2]
[331208230,1720133461364,-2616.0,0.00017808,2]
[331208231,1720133461374,-166.666666,0.00017977,2]
[331208232,1720133461466,-180.0,0.00018,2]
[331208233,1720133461476,-204.83768925,0.00018,2]
[331208234,1720133461486,-500.0,0.0001808,2]
[331208235,1720133461495,-517.48,0.0001808,2]
[331208236,1720133461506,-4311.7,0.0001808,2]
[331208237,1720133461515,-500.0,0.00018081,2]
[331208238,1720133461525,-576.88,0.00018081,2]
[331208239,1720133461534,-500.0,0.00018081,2]
[331208240,1720133461544,-500.0,0.00018081,2]
[331208241,1720133461553,-994.64,0.00018082,2]
[331208242,1720133461562,-632.4,0.00018082,2]
[331208243,1720133461571,-500.0,0.00018082,2]
[331208244,1720133461580,-3667.41,0.00018082,2]
[331208245,1720133461590,-500.0,0.00018082,2]
[331208246,1720133461599,-500.0,0.00018082,2]
[331208247,1720133461608,-523.53,0.00018082,2]
[331208248,1720133461618,-671.84,0.00018082,2]
[331208249,1720133461628,-1225.89,0.00018082,2]
[331208250,1720133461637,-688.84,0.00018082,2]
[331208251,1720133461647,-849.87,0.00018082,2]
[331208252,1720133461657,-574.15097537,0.00018082,2]
[331208253,1720133461666,-758.77,0.00018082,2]
[331208254,1720133461676,-500.0,0.00018082,2]
[331208255,1720133461686,-600.34,0.00018082,2]
[331208256,1720133461696,-519.56,0.00018082,2]
[331208257,1720133461705,-1516.8,0.00018082,2]
[331208258,1720133461715,-1206.53,0.00018082,2]
[331208259,1720133461724,-2616.0,0.00018082,2]
[331208260,1720133461734,-500.0,0.00018354,2]
[331208261,1720133461743,-517.48,0.00018354,2]
[331208262,1720133461755,-4311.7,0.00018354,2]
[331208263,1720133461765,-500.0,0.00018355,2]
[331208264,1720133461775,-576.88,0.00018355,2]
[331208265,1720133461784,-500.0,0.00018355,2]
[331208266,1720133461794,-500.0,0.00018355,2]
[331208267,1720133461803,-994.64,0.00018356,2]
[331208268,1720133461813,-632.4,0.00018356,2]
[331208269,1720133461822,-500.0,0.00018356,2]
[331208270,1720133461831,-3667.41,0.00018356,2]
[331208271,1720133461841,-500.0,0.00018356,2]
[331208272,1720133461850,-500.0,0.00018356,2]
[331208273,1720133461859,-523.53,0.00018356,2]
[331208274,1720133461869,-671.84,0.00018356,2]
[331208275,1720133461878,-1225.89,0.00018356,2]
[331208276,1720133461888,-688.84,0.00018356,2]
[331208277,1720133461898,-849.87,0.00018356,2]
[331208278,1720133461908,-758.77,0.00018356,2]
[331208279,1720133461918,-500.0,0.00018356,2]
[331208280,1720133461928,-600.34,0.00018356,2]
[331208281,1720133461937,-1516.8,0.00018356,2]
[331208282,1720133461946,-1206.53,0.00018356,2]
[331208283,1720133461956,-2616.0,0.00018356,2]
[331208284,1720133461965,-166.666666,0.00018362,2]
[331208285,1720133461975,-500.0,0.00018628,2]
[331208286,1720133461985,-517.48,0.00018628,2]
[331208287,1720133461995,-4311.7,0.00018628,2]
[331208288,1720133462006,-500.0,0.00018629,2]
[331208289,1720133462015,-576.88,0.00018629,2]
[331208290,1720133462025,-493.5,0.00018629,2]
[331208291,1720133462035,-500.0,0.00018629,2]
[331208292,1720133462045,-994.64,0.0001863,2]
[331208293,1720133462054,-632.4,0.0001863,2]
[331208294,1720133462064,-500.0,0.0001863,2]
[331208295,1720133462074,-3667.41,0.0001863,2]
[331208296,1720133462083,-500.0,0.0001863,2]
[331208297,1720133462092,-500.0,0.0001863,2]
[331208298,1720133462102,-523.53,0.0001863,2]
[331208299,1720133462112,-671.84,0.0001863,2]
[331208300,1720133462122,-1225.89,0.0001863,2]
[331208301,1720133462132,-688.84,0.0001863,2]
[331208302,1720133462142,-849.87,0.0001863,2]
[331208303,1720133462151,-758.77,0.0001863,2]
[331208304,1720133462161,-500.0,0.0001863,2]
[331208305,1720133462171,-600.34,0.0001863,2]
[331208306,1720133462180,-1516.8,0.0001863,2]
[331208307,1720133462190,-1206.53,0.0001863,2]
[331208308,1720133462200,-2616.0,0.0001863,2]
[331208309,1720133462211,-500.0,0.00018902,2]
[331208310,1720133462220,-517.48,0.00018902,2]
[331208311,1720133462231,-4311.7,0.00018902,2]
[331208312,1720133462240,-500.0,0.00018903,2]
[331208313,1720133462252,-576.88,0.00018903,2]
[331208314,1720133462261,-500.0,0.00018903,2]
[331208315,1720133462272,-994.64,0.00018904,2]
[331208316,1720133462283,-632.4,0.00018904,2]
[331208317,1720133462293,-500.0,0.00018904,2]
[331208318,1720133462303,-3667.41,0.00018904,2]
[331208319,1720133462312,-500.0,0.00018904,2]
[331208320,1720133462323,-625.22,0.00018904,2]
[331208321,1720133462333,-523.53,0.00018904,2]
[331208322,1720133462344,-671.84,0.00018904,2]
[331208323,1720133462355,-1225.89,0.00018904,2]
[331208324,1720133462366,-688.84,0.00018904,2]
[331208325,1720133462376,-849.87,0.00018904,2]
[331208326,1720133462387,-758.77,0.00018904,2]
[331208327,1720133462396,-377.86,0.00018904,2]
[331208328,1720133462406,-600.34,0.00018904,2]
[331208329,1720133462416,-1516.8,0.00018904,2]
[331208330,1720133462426,-1206.53,0.00018904,2]
[331208331,1720133462435,-2616.0,0.00018904,2]
[331208332,1720133462445,-176.73361023,0.00019,2]
[331208333,1720133462455,-250.0,0.00019041,2]
[331208334,1720133462464,-185.66066001,0.000191,2]
[331208335,1720133462474,-500.0,0.00019176,2]
[331208336,1720133462484,-576.88,0.00019176,2]
[331208337,1720133462495,-500.0,0.00019176,2]
[331208338,1720133462506,-517.48,0.00019176,2]
[331208339,1720133462515,-500.0,0.00019176,2]
[331208340,1720133462525,-4311.7,0.00019176,2]
[331208341,1720133462535,-994.64,0.00019178,2]
[331208342,1720133462544,-632.4,0.00019178,2]
[331208343,1720133462554,-597.98,0.00019178,2]
[331208344,1720133462563,-3667.41,0.00019178,2]
[331208345,1720133462572,-500.0,0.00019178,2]
[331208346,1720133462582,-523.53,0.00019178,2]
[331208347,1720133462592,-670.25,0.00019178,2]
[331208348,1720133462601,-671.84,0.00019178,2]
[331208349,1720133462611,-1225.89,0.00019178,2]
[331208350,1720133462620,-688.84,0.00019178,2]
[331208351,1720133462630,-849.87,0.00019178,2]
[331208352,1720133462639,-758.77,0.00019178,2]
[331208353,1720133462648,-600.34,0.00019178,2]
[331208354,1720133462658,-1516.8,0.00019178,2]
[331208355,1720133462667,-1206.53,0.00019178,2]
[331208356,1720133462677,-2616.0,0.00019178,2]
[331208357,1720133462687,-314.168408,0.00019178,2]
[331208358,1720133462697,-440.5831188,0.00019178,4]
[331208359,1720133462706,-500.0,0.0001945,2]
[331208360,1720133462716,-576.88,0.0001945,2]
[331208361,1720133462725,-500.0,0.0001945,2]
[331208362,1720133462735,-517.48,0.0001945,2]
[331208363,1720133462744,-336.12,0.0001945,2]
[331208364,1720133462755,-4311.7,0.0001945,2]
[331208365,1720133462764,-994.64,0.00019452,2]
[331208366,1720133462774,-632.4,0.00019452,2]
[331208367,1720133462783,-3667.41,0.00019452,2]
[331208368,1720133462792,-308.82,0.00019452,2]
[331208369,1720133462801,-523.53,0.00019452,2]
[331208370,1720133462811,-670.25,0.00019452,2]
[331208371,1720133462821,-671.84,0.00019452,2]
[331208372,1720133462830,-1225.89,0.00019452,2]
[331208373,1720133462840,-688.84,0.00019452,2]
[331208374,1720133462849,-849.87,0.00019452,2]
[331208375,1720133462859,-758.77,0.00019452,2]
[331208376,1720133462868,-600.34,0.00019452,2]
[331208377,1720133462878,-1516.8,0.00019452,2]
[331208378,1720133462887,-1206.53,0.00019452,2]
[331208379,1720133462898,-2616.0,0.00019452,2]
[331208380,1720133462907,-567.70198231,0.00019724,2]
[331208381,1720133462916,-576.88,0.00019724,2]
[331208382,1720133462925,-500.0,0.00019724,2]
[331208383,1720133462935,-517.48,0.00019724,2]
[331208384,1720133462945,-4311.7,0.00019724,2]
[331208385,1720133462955,-994.64,0.00019726,2]
[331208386,1720133462965,-3667.41,0.00019726,2]
[331208387,1720133462975,-523.53,0.00019726,2]
[331208388,1720133462985,-670.25,0.00019726,2]
[331208389,1720133462995,-1225.89,0.00019726,2]
[331208390,1720133463007,-688.84,0.00019726,2]
[331208391,1720133463019,-849.87,0.00019726,2]
[331208392,1720133463030,-758.77,0.00019726,2]
[331208393,1720133463039,-600.34,0.00019726,2]
[331208394,1720133463050,-1516.8,0.00019726,2]
[331208395,1720133463060,-1206.53,0.00019726,2]
[331208396,1720133463070,-2616.0,0.00019726,2]
[331208397,1720133463080,-576.88,0.00019998,2]